Workbook

Sheet Лист1
D1: Приложение № 3
D2: к пояснительной записке к
D3: решению Совета народных депутатов
D4: ЗАТО г.Радужный Владимирской области
D5: от __________________ №___________
A7: Расшифровка расходов на оплату труда работников бюджетной сферы в разрезе
A8: бюджетных и казенных муниципальных учреждений ЗАТО г.Радужный
A9: Владимирской области на 2018 год
A11: Учреждение | B11: Вид расхода | C11: Фонд оплаты труда | D11: Взносы по обязательному сос.страхованию | E11: Сумма, тыс.руб
A13: Боджетные учреждения, в том числе: | B13: 611 | C13: =C14+C22 -> 147370.237 | D13: =D14+D22 -> 44531.13 | E13: =E14+E22 -> 191901.367
A14: -Управление образования | B14: 611 | C14: =C15+C16+C17+C18+C19+C20 -> 123841.8 | D14: =D15+D16+D17+D18+D19+D20 -> 37425.55 | E14: 161267.35
A15: МБДОУ ЦРР-д/с N 3 | B15: 611 | C15: 14359.89 | D15: 4336.69 | E15: =C15+D15 -> 18696.58
A16: МБДОУ ЦРР-д/с N 5 | B16: 611 | C16: 31204.66 | D16: 9430.9 | E16: 40635.56
A17: МБДОУ ЦРР-д/с N 6 | B17: 611 | C17: 15482.86 | D17: 4675.83 | E17: 20158.69
A18: МБОУ СОШ N 1 | B18: 611 | C18: 22779.95 | D18: 6897.77 | E18: 29677.72
A19: МБОУ СОШ N 2 | B19: 611 | C19: 29470.87 | D19: 8900.2 | E19: 38371.07
A20: МБОУ ДО ЦВР "Лад" | B20: 611 | C20: 10543.57 | D20: 3184.16 | E20: 13727.73
A22: -МКУ "Комитет по культуре и спорту | B22: 611 | C22: =C23+C24+C25+C26+C27+C28+C29 -> 23528.437 | D22: =D23+D24+D25+D26+D27+D28+D29 -> 7105.58 | E22: =C22+D22 -> 30634.017
A23: МБУК КЦ "Досуг" | B23: 611 | C23: 2956.49 | D23: 892.86 | E23: 3849.35
A24: МБУК ОБ ЗАТО г.Радужный | B24: 611 | C24: 1292.127 | D24: 390.22 | E24: 1682.347
A25: МБУК "ЦДМ" | B25: 611 | C25: 2308.77 | D25: 697.25 | E25: 3006.02
A26: МБУК ПКиО зато гРадужный | B26: 611 | C26: 991.8 | D26: 299.52 | E26: 1291.32
A27: МБУК "МСДЦ" ЗАТО г. Радужный | B27: 611 | C27: 3009.5 | D27: 908.87 | E27: 3918.37
A28: МБУДО "ДШИ" | B28: 611 | C28: 5575.41 | D28: 1683.77 | E28: 7259.18
A29: МБОУДОД ДЮСШ | B29: 611 | C29: 7394.34 | D29: 2233.09 | E29: 9627.43
A30: Органы местного самоуправления | C30: 17597.37 | D30: 5250.02 | E30: 22847.39
A31: Казенные учреждения | C31: 65113.94 | D31: 19664.39 | E31: 84778.33
A32: ЗАГС | C32: 524.4 | D32: 158.4 | E32: 682.8
A33: И Т О Г О | E33: =E13+E31+E32+E30 -> 300209.887
A37: Руководитель | E37: О.М.Горшкова
A39: Зав.бюджетным отделом | E39: Л.И.Заболотских

Sheet Лист2

Sheet Лист3
